bitfinex/quotes_ETHUSD_20230405
["timestamp","ask_amount","ask_price","bid_price","bid_amount"]
[1680690451492,1.0,1909.8,1909.4,7.1172952]
[1680690451715,0.1,1909.7,1909.4,7.1172952]
[1680690451923,0.1,1909.7,1909.4,2.1085952]
[1680690452228,0.1,1909.7,1909.4,2.1]
[1680690454597,0.1,1909.7,1909.4,2.09629212]
[1680690454810,5.85648738,1909.9,1909.4,2.09629212]
[1680690456331,5.77828255,1909.8,1909.4,2.09629212]
[1680690456531,6.01331792,1909.8,1909.4,2.09629212]
[1680690457102,0.43292018,1909.7,1909.4,2.09629212]
[1680690464125,0.07316946,1909.9,1909.4,2.09629212]
[1680690464325,5.79429338,1909.9,1909.4,2.09629212]
[1680690464621,5.79932875,1909.9,1909.4,2.09629212]
[1680690467855,5.79932875,1909.9,1909.4,2.09629212]
[1680690468351,0.0210462,1909.9,1909.4,2.09629212]
[1680690468664,0.01601083,1909.9,1909.5,14.4279]
[1680690468967,0.01601083,1909.9,1909.5,14.4309]
[1680690472129,0.43769684,1909.8,1909.5,14.4309]
[1680690479396,0.43396875,1909.8,1909.5,14.4309]
[1680690479895,0.43396875,1909.8,1909.5,14.4364952]
[1680690480099,0.01601083,1909.9,1909.5,14.4364952]
[1680690480967,0.43738616,1909.8,1909.5,14.4364952]
[1680690482097,0.01601083,1909.9,1909.5,14.4364952]
[1680690487302,0.43738616,1909.8,1909.5,14.4364952]
[1680690488201,0.01601083,1909.9,1909.5,14.4364952]
[1680690501667,0.01601083,1909.9,1909.7,0.018]
[1680690502026,0.42875981,1909.8,1909.7,0.018]
[1680690502956,0.4265642,1909.8,1909.7,0.018]
[1680690504245,0.01601083,1909.9,1909.7,0.018]
[1680690505154,0.42857684,1909.8,1909.7,0.018]
[1680690522321,0.42857684,1909.8,1909.5,0.0085952]
[1680690522477,0.42857684,1909.8,1909.2,16.47925522]
[1680690522677,1.26033561,1909.8,1909.2,16.48225522]
[1680690527617,1.25692865,1909.8,1909.2,16.48225522]
[1680690527929,7.0352112,1909.8,1909.2,16.48225522]
[1680690531115,7.0352112,1909.8,1909.2,16.22046555]
[1680690531325,3.84752112,1909.7,1909.2,16.22046555]
[1680690534909,3.86353195,1909.7,1909.2,16.22046555]
[1680690535415,3.86856732,1909.7,1909.2,16.21089724]
[1680690536233,0.42714748,1909.6,1909.2,16.21089724]
[1680690536434,0.43218285,1909.6,1909.2,16.21089724]
[1680690537110,0.86175433,1909.6,1909.2,6.57099724]
[1680690537316,0.86175433,1909.6,1909.4,0.028]
[1680690537538,0.01601083,1909.5,1909.4,0.028]
[1680690547147,3.58410541,1909.5,1909.4,0.028]
[1680690547347,6.45342333,1909.5,1909.4,0.028]
[1680690547548,7.14192281,1909.5,1909.4,0.028]
[1680690555611,7.13336799,1909.5,1909.4,0.028]
[1680690558395,3.144,1909.3,1909.0,0.002]
[1680690558595,5.77828255,1909.1,1908.2,2.3]
[1680690558796,3.144,1908.9,1908.2,7.5949]
[1680690558968,3.144,1908.7,1908.2,7.5969]
[1680690559168,5.77828255,1908.7,1908.2,7.5969]
[1680690559377,0.01249139,1908.6,1908.2,7.5969]
[1680690559779,0.01249139,1908.6,1908.2,5.3969]
[1680690560000,0.01249139,1908.6,1908.2,5.92743458]
[1680690560188,0.01249139,1908.6,1908.2,5.3969]
[1680690561256,0.59176878,1908.6,1908.2,5.3969]
[1680690562174,0.37512255,1908.5,1908.2,5.3969]
[1680690565626,0.37512255,1908.5,1908.2,5.9294383]
[1680690566733,0.37512255,1908.5,1908.2,5.3969]
[1680690582068,0.37133826,1908.5,1908.2,5.3969]
[1680690582225,0.37133826,1908.5,1908.2,5.3909]
[1680690583143,3.144,1908.8,1908.2,5.3909]
[1680690583344,3.15649139,1908.8,1908.2,5.3909]
[1680690584263,0.37333941,1908.7,1908.2,5.3909]
[1680690590251,3.51733941,1908.7,1908.2,5.3909]
[1680690590455,0.35173394,1908.6,1908.2,5.3969]
[1680690591383,3.15649139,1908.8,1908.2,5.3909]
[1680690591579,5.79077394,1908.8,1908.2,5.3909]
[1680690591779,5.79277394,1908.8,1908.2,5.3969]
[1680690592898,5.79780931,1908.8,1908.2,5.3909]
[1680690593102,3.72378093,1908.7,1908.2,5.3969]
[1680690598718,0.57978093,1908.7,1908.2,5.3969]
[1680690598914,0.01249139,1908.8,1908.4,0.015]
[1680690599116,0.01249139,1908.8,1908.2,14.9488]
[1680690603741,0.01249139,1908.8,1908.2,14.8488]
[1680690604052,0.40821609,1908.8,1908.2,14.8488]
[1680690605899,0.40581867,1908.8,1908.2,14.8548]
[1680690606370,5.77828255,1908.7,1908.2,14.8548]
[1680690606570,5.78028255,1908.7,1908.2,14.8548]
[1680690608966,5.79037652,1908.7,1908.2,14.8548]
[1680690609160,3.72303765,1908.6,1908.2,14.8548]
[1680690616366,3.144,1908.6,1908.2,14.8548]
[1680690622329,3.144,1908.6,1908.2,5.2969]
[1680690622525,0.40561094,1908.5,1908.2,5.2969]
[1680690628537,0.40227298,1908.5,1908.2,5.2969]
[1680690638270,5.77828255,1908.4,1908.2,0.008]
[1680690638599,0.57782826,1908.3,1907.9,1.54425285]
[1680690638897,5.78028255,1908.4,1907.9,0.006]
[1680690644329,3.146,1908.4,1907.9,0.006]
[1680690644500,0.002,1908.5,1908.0,0.00934273]
[1680690644686,4.998,1908.7,1908.0,2.20934273]
[1680690644687,0.002,1908.7,1908.0,2.20934273]
[1680690644992,14.42373537,1909.1,1908.1,5.37898967]
[1680690645192,14.4187,1909.1,1908.1,5.38698967]
[1680690645407,3.144,1909.0,1908.1,5.38698967]
[1680690645722,5.77828255,1909.0,1908.2,0.00934174]
[1680690645892,5.78028255,1909.0,1908.2,0.00934174]
[1680690648208,0.01009397,1908.9,1908.2,0.00934174]
[1680690650213,0.00792345,1908.9,1908.2,0.01534174]
[1680690650432,4.15192345,1908.9,1908.2,0.01534174]
[1680690652324,0.33310431,1908.8,1908.2,0.01534174]
[1680690656266,0.33310431,1908.8,1908.2,2.64962429]
[1680690662100,0.33310431,1908.8,1908.2,0.006]
[1680690663087,0.33310431,1908.8,1908.2,1.6002847]
[1680690663291,0.33310431,1908.8,1908.2,0.006]
[1680690665474,0.33310431,1908.8,1908.1,7.45681672]
[1680690665683,3.48502776,1908.8,1908.1,7.45681672]
[1680690665893,3.49006313,1908.8,1908.1,7.45681672]
[1680690666518,8.03696313,1908.8,1908.1,7.45681672]
[1680690666816,8.03896313,1908.8,1908.1,7.45681672]
[1680690669320,8.03896313,1908.8,1908.1,7.2461558]
[1680690670785,10.67324568,1908.8,1908.1,5.0461558]
[1680690673683,3.144,1908.6,1908.1,0.13961672]
[1680690673888,3.14903537,1908.6,1908.4,0.015]
[1680690674089,0.3144,1908.5,1908.4,0.015]
[1680690674291,0.31943537,1908.5,1908.4,0.015]
[1680690682011,0.00503537,1908.5,1908.1,0.13761672]
[1680690682213,0.00503537,1908.5,1908.4,0.015]
[1680690682388,0.28107767,1908.5,1908.4,0.015]
[1680690688304,0.28107767,1908.5,1908.1,0.13761672]
[1680690693422,0.55958332,1908.5,1908.1,0.13761672]
[1680690693643,0.55958332,1908.5,1908.1,0.14316526]
[1680690695116,0.55958332,1908.5,1908.1,0.13761672]
[1680690696028,0.55958332,1908.5,1908.1,0.14316526]
[1680690696228,0.55958332,1908.5,1908.1,0.13761672]
[1680690697422,0.55958332,1908.5,1908.1,0.13961672]
[1680690697627,0.55958332,1908.5,1908.1,0.14316526]
[1680690698620,0.55958332,1908.5,1908.1,0.13761672]
[1680690698812,0.55958332,1908.5,1908.1,0.14316526]
[1680690699018,0.55958332,1908.5,1908.1,0.13761672]
[1680690700883,0.55958332,1908.5,1908.1,0.14316526]
[1680690702189,0.55958332,1908.5,1908.1,0.13761672]
[1680690707002,0.55090032,1908.5,1908.1,0.13761672]
[1680690707379,9.5566,1908.7,1908.1,0.13761672]
[1680690708397,0.55738075,1908.6,1908.1,0.13761672]
[1680690712597,4.5469,1908.8,1908.3,0.00913189]
[1680690712810,4.5469,1908.8,1908.3,0.01468043]
[1680690714656,4.5469,1908.8,1908.5,0.05]
[1680690715455,0.5796394,1908.7,1908.5,0.05]
[1680690730098,0.57714027,1908.7,1908.5,0.05]
[1680690737550,1.0897443,1908.7,1908.5,0.05]
[1680690737734,1.0897443,1908.7,1908.3,1.55622941]
[1680690737921,0.57714027,1908.7,1908.3,1.55622941]
[1680690738936,0.57714027,1908.7,1908.3,1.55068087]
[1680690739124,0.57714027,1908.7,1908.1,0.13801062]
[1680690740353,0.58117607,1908.7,1908.1,0.12905199]
[1680690744428,0.58117607,1908.7,1908.0,5.14015384]
[1680690746148,3.72517607,1908.7,1908.2,0.05]
[1680690746540,0.00792345,1908.6,1908.2,0.05]
[1680690746737,0.01195925,1908.6,1908.2,0.05]
[1680690757308,0.64682103,1908.5,1908.2,0.05]
[1680690757470,0.65085683,1908.5,1908.2,0.05]
[1680690758423,0.71673486,1908.5,1908.2,0.05]
[1680690760717,0.70949992,1908.5,1908.2,0.05]
[1680690761177,0.64362189,1908.5,1908.2,0.05]
[1680690762283,0.64107215,1908.5,1908.2,0.05]
[1680690770726,6.4193547,1908.5,1908.2,0.05]
[1680690770928,6.4213547,1908.5,1908.2,0.05]
[1680690775226,7.3453547,1908.5,1908.2,0.05]
[1680690775397,8.56556251,1908.5,1908.2,0.05]
[1680690778745,2.78727996,1908.5,1908.2,0.05]
[1680690779040,2.78527996,1908.5,1908.2,0.05]
[1680690780314,5.92927996,1908.5,1908.2,0.05]
[1680690780512,5.93127996,1908.5,1908.2,0.05]
[1680690781806,0.593128,1908.4,1908.2,0.05]
[1680690782736,0.58919768,1908.4,1908.2,0.05]
[1680690783515,4.07,1908.5,1908.2,0.05]
[1680690783760,3.144,1908.5,1908.2,0.05]
[1680690787329,0.64984066,1908.4,1908.2,0.05]
[1680690801588,0.64984066,1908.4,1908.0,0.01403049]
[1680690802398,5.78572345,1908.6,1908.0,0.01403049]
[1680690803296,0.61335129,1908.5,1908.0,0.01403049]
[1680690805000,0.61100266,1908.5,1908.0,0.01403049]
[1680690815380,0.924,1908.7,1908.0,0.01403049]
[1680690815629,0.924,1908.7,1908.0,5.23643049]
[1680690815798,0.924,1908.7,1908.0,5.24397903]
[1680690816215,0.56615865,1908.6,1908.0,5.24397903]
[1680690818842,0.5740821,1908.6,1908.0,5.24397903]
[1680690826547,0.5761179,1908.6,1908.0,5.23485465]
[1680690826856,0.5781179,1908.6,1908.0,5.23485465]
[1680690828514,0.5781179,1908.6,1908.0,7.8691372]
[1680690828856,0.56615865,1908.6,1908.1,5.76328255]
[1680690829148,0.56615865,1908.6,1908.2,0.93963233]
[1680690829314,0.57019445,1908.6,1908.2,3.57391488]
[1680690829512,0.56615865,1908.6,1908.2,3.57391488]
[1680690829715,0.56615865,1908.6,1908.2,8.63561488]
[1680690829947,0.56615865,1908.6,1908.2,8.63761488]
[1680690830148,0.56615865,1908.6,1908.3,2.63428255]
[1680690830450,0.0040358,1908.9,1908.5,2.2]
[1680690830614,0.0040358,1908.9,1908.5,4.83428255]
[1680690831259,0.5677664,1908.8,1908.5,4.83428255]
[1680690833848,0.5677664,1908.8,1908.5,4.84491321]
[1680690836981,0.5677664,1908.8,1908.5,5.36135984]
[1680690837279,0.5677664,1908.8,1908.6,2.63428255]
[1680690840593,0.5677664,1908.8,1908.5,7.64407729]
[1680690840767,0.5677664,1908.8,1908.5,10.27835984]
[1680690841589,0.5677664,1908.8,1908.5,5.43344663]
[1680690841784,0.5677664,1908.8,1908.5,7.63344663]
[1680690843786,0.5677664,1908.8,1908.6,2.63428255]
[1680690849090,0.5677664,1908.8,1908.6,2.54614347]
[1680690849692,0.5677664,1908.8,1908.5,9.22090107]
[1680690849891,0.5677664,1908.8,1908.5,11.85518362]
[1680690851616,0.5677664,1908.8,1908.5,9.22090107]
[1680690852883,0.5677664,1908.8,1908.5,4.29527041]
[1680690853087,0.5677664,1908.8,1908.5,4.29327041]
[1680690853521,0.5677664,1908.8,1908.5,2.09327041]
[1680690853728,0.5677664,1908.8,1908.4,10.4175]
[1680690853930,0.5677664,1908.8,1908.5,2.2]
[1680690861334,0.71744304,1908.8,1908.4,2.07512734]
[1680690861493,0.71744304,1908.8,1908.4,2.07312734]
[1680690861699,0.71744304,1908.8,1908.3,7.66356998]
[1680690861898,0.71744304,1908.8,1908.3,9.24401771]
[1680690862098,1.64644304,1908.8,1908.3,9.24401771]
[1680690862298,0.1646443,1908.7,1908.3,7.04401771]
[1680690863120,1.64644304,1908.8,1908.3,7.04401771]
[1680690863301,1.07867664,1908.8,1908.3,7.04401771]
[1680690863931,1.07867664,1908.8,1908.3,7.56164897]
[1680690865538,1.07867664,1908.8,1908.3,9.76164897]
[1680690868717,1.07867664,1908.8,1908.3,9.71164897]
[1680690869048,0.10786766,1908.7,1908.3,4.52804897]
[1680690869247,0.10786766,1908.7,1908.3,2.3154172]
[1680690869546,0.10786766,1908.7,1908.3,4.30362753]
[1680690872225,0.927,1908.7,1908.3,4.30362753]
[1680690877426,0.51717988,1908.6,1908.3,4.30362753]
[1680690878653,0.51717988,1908.6,1908.3,6.93791008]
[1680690878857,0.51717988,1908.6,1908.3,6.93991008]
[1680690880354,0.51717988,1908.6,1908.3,6.95054185]
[1680690882061,0.51717988,1908.6,1908.4,2.63428255]
[1680690882426,0.51717988,1908.6,1908.4,7.54988255]
[1680690882771,0.51717988,1908.6,1908.4,7.55188255]
[1680690883263,0.01149929,1908.8,1908.4,7.55188255]
[1680690884376,0.50260713,1908.7,1908.4,7.55188255]
[1680690892848,0.00054666,1908.7,1908.4,7.55188255]
[1680690893360,0.46002587,1908.7,1908.4,17.11598255]
[1680690901295,1.929,1909.0,1908.4,17.11598255]
[1680690901851,0.929,1909.0,1908.4,17.11598255]
[1680690902055,2.42827107,1909.0,1908.4,17.11598255]
[1680690902488,0.53869939,1908.9,1908.4,17.11598255]
[1680690910846,0.53869939,1908.9,1908.4,14.4817]
[1680690912203,1.46769939,1908.9,1908.4,14.4817]
[1680690914514,1.46477191,1908.9,1908.4,14.48724854]
[1680690914847,1.76232614,1908.9,1908.4,0.00754854]
[1680690915043,0.921,1908.7,1908.4,0.00554854]
[1680690922443,0.4630307,1908.6,1908.4,0.00554854]
[1680690931195,0.4630307,1908.6,1908.4,4.83983109]
[1680690931485,0.4630307,1908.6,1908.5,2.63428255]
[1680690931654,0.4630307,1908.6,1908.5,2.63983109]
[1680690931853,0.4630307,1908.6,1908.5,0.26733821]
[1680690932238,0.4630307,1908.6,1908.5,0.26378967]
[1680690932507,4.917,1909.0,1908.5,2.90162076]
[1680690932782,0.931,1909.1,1908.5,2.90162076]
[1680690933001,0.929,1909.1,1908.5,2.90162076]
[1680690933286,0.929,1909.1,1908.6,5.0243]
[1680690933485,0.43219199,1909.0,1908.6,5.03184854]
[1680690933686,0.43219199,1909.0,1908.6,5.29363821]
[1680690934044,0.43219199,1909.0,1908.6,6.02712821]
[1680690934484,0.61597286,1909.0,1908.6,6.02712821]
[1680690934774,0.61220866,1909.0,1908.6,5.29363821]
[1680690935544,0.61220866,1909.0,1908.7,2.2]
[1680690936277,0.61220866,1909.0,1908.7,2.20554854]
[1680690939285,0.927,1909.3,1908.7,2.20554854]
[1680690940351,0.61421328,1909.2,1908.7,2.21617809]
[1680690941825,0.61421328,1909.2,1908.7,2.21062955]
[1680690942950,0.61421328,1909.2,1908.7,4.8449121]
[1680690943099,0.61824908,1909.2,1908.7,4.8449121]
[1680690943303,0.61824908,1909.2,1908.7,5.5783521]
[1680690943605,0.61824908,1909.2,1908.7,5.5803521]
[1680690944254,0.61421328,1909.2,1908.7,5.5803521]
[1680690944558,0.61421328,1909.2,1908.7,4.8469121]
[1680690944852,0.61421328,1909.2,1908.7,4.8449121]
[1680690950270,0.61421328,1909.2,1909.0,0.12832]
[1680690954739,0.61421328,1909.2,1909.0,0.12832]
[1680690965589,0.929,1909.1,1908.7,0.13227102]
[1680690965788,0.928,1908.9,1908.7,0.03667]
[1680690966030,0.928,1908.9,1908.8,0.01833]
[1680690966325,0.928,1908.9,1908.8,0.055]
[1680690966485,0.9258725,1908.9,1908.8,0.055]
[1680690967382,1.4134659,1908.9,1908.8,0.055]
[1680690967589,1.55481249,1908.9,1908.8,0.01833]
[1680690968212,1.55481249,1908.9,1908.8,0.055]
[1680690968398,1.4134659,1908.9,1908.8,0.055]
[1680690969700,1.4134659,1908.9,1908.8,0.12834]
[1680690972233,0.4875934,1908.9,1908.8,0.12834]
[1680690973334,0.4875934,1908.9,1908.8,0.13896899]
[1680690973704,0.4875934,1908.9,1908.8,2.33896899]
[1680690974323,0.929,1909.1,1908.8,2.33896899]
[1680690974639,0.929,1909.1,1909.0,0.31166]
[1680690980415,4.7018358,1909.2,1909.0,0.31166]
[1680690980416,5.6288358,1909.2,1909.0,0.31166]
[1680690982076,4.7018358,1909.2,1909.0,0.31166]
[1680690982221,4.6998358,1909.2,1909.0,0.31166]
[1680690982557,0.43986329,1909.1,1909.0,0.31166]
[1680690983554,0.43986329,1909.1,1909.0,0.12832]
[1680690984284,0.43986329,1909.1,1909.0,0.05499]
[1680690984438,0.9540332,1909.1,1909.0,0.05499]
[1680690985336,1.8780332,1909.1,1909.0,0.01833]
[1680690985948,1.8780332,1909.1,1908.9,0.055]
[1680690986152,0.18780332,1909.0,1908.9,0.055]
[1680690986366,0.18780332,1909.0,1908.9,0.01833]
[1680690986851,1.11680332,1909.0,1908.9,0.01833]
[1680690987166,1.11680332,1909.0,1908.8,0.03667]
[1680690987497,1.11680332,1909.0,1908.9,0.01833]
[1680690992401,1.11680332,1909.0,1908.6,0.20719754]
[1680690992713,1.11680332,1909.0,1908.8,0.01833]
[1680690992862,1.11680332,1909.0,1908.9,0.01833]
[1680690993202,0.929,1909.0,1908.9,0.01833]
[1680690996091,0.929,1909.0,1908.7,0.03667]
[1680690996273,0.51416991,1909.1,1908.8,0.03667]
[1680690996274,0.927,1908.9,1908.8,0.03667]
[1680690996474,0.927,1908.9,1908.8,0.055]
[1680690997970,1.0197,1908.9,1908.8,0.055]
[1680691000174,1.0197,1908.9,1908.6,0.13384754]
[1680691000376,0.927,1908.9,1908.6,0.13384754]
[1680691002228,0.924,1909.0,1908.6,0.13384754]
[1680691004498,0.924,1909.0,1908.6,0.13059977]
[1680691022879,0.924,1909.0,1908.4,17.53973122]
[1680691026972,0.92129309,1909.0,1908.4,17.54525716]
[1680691032072,10.1071,1909.1,1908.4,17.54525716]
[1680691032373,10.1071,1909.1,1908.4,20.91309971]
[1680691032554,0.002,1909.1,1908.5,2.63428255]
[1680691032878,4.6958,1909.2,1908.6,2.2]
[1680691033036,4.6958,1909.2,1908.6,2.20552594]
[1680691033374,0.929,1909.3,1908.6,4.83980849]
[1680691033674,0.927,1909.3,1908.7,0.73346]
[1680691034240,0.927,1909.3,1908.8,0.073346]
[1680691039358,0.01149929,1909.2,1908.8,0.073346]
[1680691039694,0.01149929,1909.2,1908.7,15.53005549]
[1680691048688,0.00816462,1909.2,1908.7,15.53005549]
[1680691053351,0.00816462,1909.2,1908.8,0.25274002]
[1680691062045,0.93516462,1909.2,1908.8,0.25274002]
[1680691072579,0.93235258,1909.2,1908.8,0.25274002]
[1680691072912,1.12558784,1909.2,1908.8,0.25274002]
[1680691085639,1.12558784,1909.2,1908.8,0.24946902]
[1680691085847,0.93235258,1909.2,1908.8,0.24946902]
[1680691093447,4.07635258,1909.2,1908.8,0.24946902]
[1680691094534,9.03425258,1909.2,1908.8,0.24946902]
[1680691094718,9.04028838,1909.2,1908.8,0.24946902]
[1680691095428,9.04028838,1909.2,1908.8,1.84244865]
[1680691095628,0.90402884,1909.1,1908.8,0.24946902]
[1680691106276,0.90010513,1909.1,1908.8,0.24946902]
[1680691116602,0.90010513,1909.1,1908.8,1.80780092]
[1680691116804,0.90010513,1909.1,1908.8,0.24946902]
[1680691118105,0.09001051,1909.0,1908.8,0.24946902]
[1680691119390,0.90010513,1909.1,1908.8,0.24946902]
[1680691121451,8.10925258,1909.2,1908.8,0.24946902]
[1680691130582,8.10650711,1909.2,1908.8,0.24946902]
[1680691136340,8.11054291,1909.2,1908.8,0.24722635]
[1680691137725,8.11054291,1909.2,1908.8,1.80040838]
[1680691137937,0.81105429,1909.1,1908.8,0.24722635]
[1680691141429,0.81105429,1909.1,1908.8,0.30019701]
[1680691145213,6.58933684,1909.1,1908.8,0.30019701]
[1680691145540,6.59537264,1909.1,1908.8,0.30019701]
[1680691145742,3.80353726,1909.0,1908.8,0.30019701]
[1680691166430,3.80106121,1909.0,1908.8,0.30019701]
[1680691167132,0.002,1909.1,1908.8,0.30019701]
[1680691167283,8.1039,1909.2,1908.8,0.30019701]
[1680691167490,3.146,1909.2,1908.8,0.30019701]
[1680691167687,3.144,1909.2,1908.8,0.30019701]
[1680691168294,3.144,1909.2,1908.8,0.29717432]
[1680691168823,3.1500358,1909.3,1908.8,0.29717432]
[1680691169001,5.78231835,1909.3,1908.8,0.29717432]
[1680691169198,7.05219193,1909.3,1908.8,0.29717432]
[1680691173744,4.41790938,1909.3,1908.8,0.29717432]
[1680691174047,0.0040358,1909.3,1908.8,2.93145687]
[1680691174349,3.1480358,1909.5,1908.8,0.29717432]
[1680691174502,5.78231835,1909.5,1908.8,0.29717432]
[1680691174706,5.78431835,1909.5,1908.8,0.29717432]
[1680691174933,5.78692546,1909.5,1908.8,0.29717432]
[1680691177764,5.78692546,1909.5,1908.8,0.31625264]
[1680691180538,0.00864291,1909.5,1908.8,0.31625264]
[1680691180745,0.00260711,1909.5,1908.8,0.31625264]
[1680691181661,4.14660711,1909.5,1908.8,0.29717432]
[1680691181864,0.41466071,1909.4,1908.8,1.8962261]
[1680691182015,0.41466071,1909.4,1908.8,0.29717432]
[1680691189390,0.41253228,1909.4,1908.8,0.29717432]
[1680691189690,1.41253228,1909.4,1908.8,0.30270026]
[1680691190211,5.76435608,1909.3,1908.8,0.30117432]
[1680691190350,20.28105608,1909.3,1908.8,0.29717432]
[1680691190689,3.144,1909.1,1908.8,0.29717432]
[1680691190921,1.3144,1909.0,1908.8,0.29717432]
[1680691192292,0.00260711,1908.9,1908.8,0.29717432]
[1680691196916,17.4307,1909.3,1908.8,0.29717432]
[1680691197369,7.8613,1909.3,1908.8,0.29717432]
[1680691197571,7.8613,1909.3,1908.8,0.30270026]
[1680691198800,7.8613,1909.3,1908.8,0.30270026]
[1680691198971,8.68868323,1909.3,1908.8,0.30270026]
[1680691200397,7.8613,1909.3,1908.8,0.30270026]
[1680691213224,7.85735193,1909.3,1908.8,0.29717432]
[1680691217694,4.71335193,1909.3,1908.8,0.29717432]
[1680691217868,4.71135193,1909.3,1908.8,0.29717432]
[1680691219177,4.71135193,1909.3,1908.8,1.84643524]
[1680691219365,4.71135193,1909.3,1908.8,0.30270026]
[1680691219706,4.71135193,1909.3,1908.8,0.29717432]
[1680691232415,4.71135193,1909.3,1908.7,0.02460526]
[1680691233630,4.71135193,1909.3,1908.8,0.20801902]
[1680691235705,4.70808961,1909.3,1908.8,0.20801902]
[1680691245435,5.49375928,1909.3,1908.8,0.20801902]
[1680691245635,5.49575928,1909.3,1908.8,0.20801902]
[1680691246681,4.71008961,1909.3,1908.8,0.20801902]
[1680691246837,4.70808961,1909.3,1908.8,0.20801902]
[1680691252741,4.70808961,1909.3,1908.8,1.7930731]
[1680691252982,4.70808961,1909.3,1908.8,0.20801902]
[1680691257343,4.70517457,1909.3,1908.8,0.20801902]
[1680691260340,5.49055274,1909.3,1908.8,0.20801902]
[1680691260543,5.49255274,1909.3,1908.8,0.20801902]
[1680691266582,5.49255274,1909.3,1908.7,0.02460526]
[1680691267093,15.47355274,1909.3,1908.7,0.02460526]
[1680691269701,15.47355274,1909.3,1908.7,0.02071498]
[1680691269913,15.47758854,1909.3,1908.7,0.01518904]
[1680691270224,4.71121037,1909.3,1908.7,2.73823543]
[1680691270400,0.0040358,1909.3,1908.8,8.14628255]
[1680691270568,0.0040358,1909.4,1908.9,0.74877195]
[1680691270763,0.0040358,1909.6,1908.9,3.3830545]
[1680691271512,0.0040358,1909.7,1909.0,5.3014]
[1680691271805,0.0040358,1909.7,1909.1,0.01538034]
[1680691273718,0.0040358,1909.7,1909.2,3.36755255]
[1680691273873,0.0040358,1909.8,1909.3,4.7752]
[1680691277412,0.0040358,1909.8,1909.3,4.79057873]
[1680691279732,0.0040358,1909.8,1909.3,7.42486128]
[1680691280008,0.0040358,1909.9,1909.4,2.63428255]
[1680691280209,0.0040358,1909.9,1909.4,12.87268255]
[1680691280412,0.0040358,1909.9,1909.5,0.01537712]
[1680691283473,0.0040358,1909.9,1909.5,2.64965967]
[1680691283785,0.0040358,1910.1,1909.5,2.64965967]
[1680691283984,0.0040358,1910.1,1909.5,3.38281967]
[1680691288650,0.0040358,1910.1,1909.6,2.63428255]
[1680691289133,0.0040358,1910.1,1909.6,7.73438255]
[1680691289310,0.0040358,1910.1,1909.6,7.73638255]
[1680691292433,0.0040358,1910.1,1909.6,7.75175886]
[1680691293634,4.7223,1910.2,1909.6,7.75175886]
[1680691293635,4.7223,1910.2,1909.6,7.7572848]
[1680691297277,4.7223,1910.2,1909.6,8.29134222]
[1680691300241,4.7223,1910.2,1910.1,0.31148]
[1680691302121,4.71323905,1910.2,1910.1,0.31148]
[1680691302417,0.002,1910.3,1910.1,0.31148]
[1680691302717,9.11950001,1910.4,1910.2,0.05496]
[1680691304577,14.05560001,1910.4,1910.2,0.05496]
[1680691305545,15.47333415,1910.4,1910.2,0.05496]
[1680691306942,18.61733415,1910.4,1910.2,0.05496]
[1680691307111,21.2516167,1910.4,1910.2,0.05496]
[1680691307315,4.144,1910.3,1910.2,0.05496]
[1680691326562,4.14079038,1910.3,1910.2,0.05496]
[1680691326771,6.36628083,1910.3,1910.2,0.05496]
[1680691326970,6.36828083,1910.3,1910.2,0.05496]
[1680691327778,6.36828083,1910.3,1909.8,0.00552594]
[1680691327954,6.36828083,1910.3,1910.2,0.05496]
[1680691328152,4.14279038,1910.3,1910.2,0.05496]
[1680691328360,4.14079038,1910.3,1910.2,0.05496]
[1680691331246,4.14079038,1910.3,1909.7,0.53790579]
[1680691331580,0.41407904,1910.2,1910.1,0.07329]
[1680691331809,0.41407904,1910.2,1910.1,0.12825]
[1680691332451,0.00649739,1910.3,1910.2,0.05496]
[1680691338557,1.00649739,1910.3,1910.2,0.05496]
[1680691340187,1.00649739,1910.3,1909.8,0.0153747]
[1680691342997,1.0,1910.3,1909.8,0.0153747]
[1680691343205,17.19960001,1910.4,1909.8,0.07070275]
[1680691347614,17.19637806,1910.4,1909.8,0.07622869]
[1680691353421,19.83066061,1910.4,1909.8,0.02090064]
[1680691353619,1.0,1910.3,1909.8,0.0153747]
[1680691353787,1.0,1910.3,1909.8,0.02090064]
[1680691353987,3.08306606,1910.3,1909.8,0.02090064]
[1680691364524,8.86134861,1910.3,1909.8,0.02090064]
[1680691364795,8.86334861,1910.3,1909.8,0.02090064]
[1680691365931,6.22906606,1910.3,1909.8,0.02090064]
[1680691366142,4.146,1910.3,1909.8,0.02090064]
[1680691366368,4.144,1910.3,1909.8,0.02090064]
[1680691369363,14.05887545,1910.4,1909.8,0.02090064]
[1680691369539,14.05887545,1910.4,1909.8,0.0153747]
[1680691372168,14.05556053,1910.4,1909.8,0.02090064]
[1680691372946,0.11196053,1910.4,1909.8,2.65518319]
[1680691373150,0.10996053,1910.4,1909.8,16.90798319]
[1680691373361,0.10996053,1910.4,1909.8,16.90998319]
[1680691381543,0.10996053,1910.4,1909.8,14.27570064]
[1680691382644,0.10996053,1910.4,1909.8,14.26032594]
[1680691382844,0.10996053,1910.4,1909.8,0.00752594]
[1680691383150,0.60879396,1910.4,1909.6,2.24454835]
[1680691383346,1.0,1910.2,1909.6,0.13480366]
[1680691383557,5.9988,1910.2,1909.6,0.13480366]
[1680691383783,6.0008,1910.2,1909.6,0.13480366]
[1680691384348,8.11851825,1910.2,1909.6,0.13480366]
[1680691387709,6.0008,1910.2,1909.6,0.13480366]
[1680691393488,5.99863244,1910.2,1909.6,0.13480366]
[1680691397674,5.99863244,1910.2,1909.6,0.65985774]
[1680691397869,5.99863244,1910.2,1909.6,0.13480366]
[1680691401082,5.0008,1910.2,1909.6,0.13480366]
[1680691401617,5.0008,1910.2,1909.6,0.66817746]
[1680691401826,5.0008,1910.2,1909.7,0.06681775]
[1680691402117,5.0008,1910.2,1909.6,0.13480366]
[1680691404904,5.0008,1910.2,1909.6,0.15017997]
[1680691408090,5.0008,1910.2,1909.6,0.67391909]
[1680691408334,5.0008,1910.2,1909.6,0.15017997]
[1680691412143,5.0008,1910.2,1909.6,0.66115205]
[1680691412347,5.0008,1910.2,1909.6,0.21629517]
[1680691412649,5.0008,1910.2,1909.6,0.15017997]
[1680691415819,5.0008,1910.2,1909.6,0.68464525]
[1680691416021,5.0008,1910.2,1909.6,0.15017997]
[1680691416433,4.99790434,1910.2,1909.6,0.15017997]
[1680691416635,4.99590434,1910.2,1909.6,0.15017997]
[1680691416839,0.49959043,1910.1,1909.6,0.13480366]